fUST/lending_fUST_20250625
["ID","MTS","AMOUNT","RATE_DAILY","PERIOD"]
[367484157,1750817439935,-150.136,0.00019808,2]
[367484158,1750817439944,-150.0,0.00019808,2]
[367484159,1750817439953,-150.0,0.00019808,2]
[367484160,1750817439963,-965.0,0.00019808,2]
[367484161,1750817439972,-2161.0,0.00019808,2]
[367484162,1750817439982,-654.0,0.00019808,2]
[367484163,1750817439990,-3501.9366637,0.00019831,2]
[367484164,1750817439999,-444.28628517,0.00019842,2]
[367484165,1750817440009,-295.08,0.0001999,2]
[367484166,1750817440018,-459.6698521,0.00019997,2]
[367484167,1750817440030,-460.0,0.00019997,2]
[367484168,1750817440040,-460.0,0.00019997,2]
[367484169,1750817440049,-460.0,0.00019997,2]
[367484170,1750817440059,-460.0,0.00019998,2]
[367484171,1750817440069,-460.0,0.00019999,2]
[367484172,1750817440078,-300.0,0.0002,2]
[367484173,1750817440089,-500.0,0.0002,13]
[367484174,1750817440099,-500.0,0.0002,13]
[367484175,1750817440108,-501.75,0.0002,13]
[367484176,1750817440118,-300.0,0.0002,2]
[367484177,1750817440128,-300.0,0.0002,2]
[367484178,1750817440137,-207.4,0.00020087,2]
[367484179,1750817440147,-177.85,0.000201,2]
[367484180,1750817440157,-3501.9366637,0.00020107,2]
[367484181,1750817440167,-444.28628517,0.00020162,2]
[367484182,1750817440177,-30.6500774,0.00020164,2]
[367484183,1750817440186,-1361.091,0.00020164,2]
[367484184,1750817440196,-255.843395,0.00020187,2]
[367484185,1750817440205,-460.0,0.00020271,2]
[367484186,1750817440215,-460.0,0.00020271,2]
[367484188,1750817440225,-460.0,0.00020271,2]
[367484190,1750817440234,-460.0,0.00020272,2]
[367484192,1750817440245,-460.0,0.00020273,2]
[367484193,1750817440255,-2200.0,0.0002037,2]
[367484196,1750817440265,-3501.9366637,0.00020383,3]
[367484197,1750817440278,-444.28628517,0.00020404,2]
[367484199,1750817440288,-154.1940999,0.00020519,2]
[367484201,1750817440298,-153.0,0.00020519,2]
[367484203,1750817440307,-153.0,0.00020519,2]
[367484206,1750817440317,-460.0,0.00020545,2]
[367484207,1750817440326,-336.89128199,0.00020545,2]
[367484209,1750817440336,-460.0,0.00020545,2]
[367484211,1750817440345,-460.0,0.00020546,2]
[367484213,1750817440354,-651.3,0.00020547,14]
[367484215,1750817440364,-460.0,0.00020547,2]
[367484217,1750817440374,-444.28628517,0.00020593,2]
[367484218,1750817440383,-3501.9366637,0.00020659,3]
[367484219,1750817440393,-538.0,0.000207,2]
[367484220,1750817440402,-403.0,0.0002077,2]
[367484221,1750817440411,-2000.0,0.000208,2]
[367484222,1750817440422,-460.0,0.00020819,2]
[367484223,1750817440431,-460.0,0.0002082,2]
[367484224,1750817440441,-651.3,0.00020821,15]
[367484225,1750817440452,-460.0,0.00020821,2]
[367484226,1750817440462,-403.0,0.00020835,2]
[367484227,1750817440472,-587.0,0.00020882,2]
[367484228,1750817440482,-587.0,0.00020882,2]
[367484229,1750817440493,-3501.9366637,0.00020934,4]
[367484230,1750817440502,-213.69531788,0.0002098,10]
[367484231,1750817440512,-12558.06783089,0.0002098,10]
[367484232,1750817440523,-524.21181985,0.0002098,10]
[367484233,1750817440533,-846.80634355,0.0002098,10]
[367484234,1750817440543,-444.28628517,0.00020985,2]
[367484235,1750817440552,-160.0,0.00021,2]
[367484236,1750817440562,-2048.65,0.0002106,2]
[367484237,1750817440572,-305.08685603,0.00021093,2]
[367484238,1750817440581,-460.0,0.00021094,2]
[367484239,1750817440590,-651.3,0.00021095,16]
[367484241,1750817440599,-460.0,0.00021095,2]
[367484242,1750817440609,-444.28628517,0.00021142,2]
[367484243,1750817440618,-403.0,0.00021189,2]
[367484244,1750817440628,-3501.9366637,0.0002121,4]
[367484245,1750817440638,-153.13536733,0.0002132,2]
[367484246,1750817440647,-153.0,0.00021341,2]
[367484247,1750817440658,-153.0,0.00021341,2]
[367484248,1750817440667,-153.0,0.00021341,2]
[367484249,1750817440677,-153.0,0.00021341,2]
[367484250,1750817440686,-153.0,0.00021341,2]
[367484251,1750817440696,-153.0,0.00021341,2]
[367484252,1750817440706,-153.0,0.00021341,2]
[367484253,1750817440715,-153.0,0.00021341,2]
[367484254,1750817440725,-153.0,0.00021341,2]
[367484255,1750817440734,-153.0,0.00021341,2]
[367484256,1750817440744,-153.0,0.00021341,2]
[367484257,1750817440753,-153.0,0.00021341,2]
[367484258,1750817440763,-153.0,0.00021341,2]
[367484259,1750817440773,-153.0,0.00021341,2]
[367484260,1750817440782,-460.0,0.00021368,2]
[367484261,1750817440791,-651.3,0.00021369,17]
[367484262,1750817440800,-460.0,0.00021369,2]
[367484263,1750817440810,-5705.0,0.000214,2]
[367484264,1750817440819,-403.0,0.00021411,2]
[367484265,1750817440828,-215.0738,0.00021456,2]
[367484266,1750817440838,-3501.9366637,0.00021486,5]
[367484267,1750817440848,-1544.605085,0.0002156,4]
[367484268,1750817440857,-444.28628517,0.00021574,2]
[367484269,1750817440867,-403.0,0.00021612,2]
[367484270,1750817440876,-200.0,0.0002164,3]
[367484271,1750817440885,-316.82943924,0.00021642,2]
[367484272,1750817440895,-651.3,0.00021643,18]
[367484273,1750817440905,-460.0,0.00021643,2]
[367484274,1750817440915,-3501.9366637,0.00021762,5]
[367484275,1750817440924,-3000.0,0.00021768,2]
[367484276,1750817440934,-2000.0,0.000218,2]
[367484277,1750817440944,-3000.0,0.00021808,2]
[367484278,1750817440954,-444.28628522,0.00021809,2]
[367484279,1750817440963,-6484.48,0.00021846,2]
[367484280,1750817440972,-1000.0,0.0002185,5]
[367484281,1750817440982,-12000.0,0.00021868,2]
[367484282,1750817440991,-153.71839,0.00021899,5]
[367484283,1750817441002,-13186.03557868,0.000219,2]
[367484284,1750817441011,-651.3,0.00021917,19]
[367484285,1750817441020,-201.96930778,0.00021917,2]
[367484286,1750817441030,-460.0,0.00021917,2]
[367484287,1750817441040,-541.07881641,0.00021917,2]
[367484288,1750817441049,-500.0,0.00021917,2]
[367484289,1750817441059,-500.0,0.00021917,2]
[367484290,1750817441068,-503.82676885,0.00021917,2]
[367484291,1750817441078,-460.0,0.00021917,2]
[367484292,1750817441089,-500.0,0.00021917,2]
[367484293,1750817441100,-500.76607002,0.00021917,2]
[367484294,1750817441109,-166.0,0.00021918,2]
[367484295,1750817441119,-301.5438891,0.00021918,3]
[367484296,1750817441130,-401.149339,0.00021918,7]
[367484297,1750817441139,-150.0,0.00021918,2]
[367484298,1750817441149,-12000.0,0.00021926,2]
[367484299,1750817441158,-500.0,0.00021973,2]
[367484300,1750817441169,-500.0,0.00021973,2]
[367484301,1750817441179,-180.55111141,0.00021973,2]
[367484302,1750817441188,-500.0,0.00021973,2]
[367484303,1750817441199,-500.0,0.00021973,2]
[367484304,1750817441209,-500.0,0.00021973,2]
[367484305,1750817441218,-500.0,0.00021973,2]
[367484306,1750817441228,-500.0,0.00021973,2]
[367484307,1750817441238,-500.0,0.00021973,2]
[367484308,1750817441247,-500.0,0.00021973,2]
[367484309,1750817441257,-600.0,0.00021973,2]
[367484310,1750817441267,-500.0,0.00021973,2]
[367484311,1750817441277,-500.0,0.00021973,2]
[367484312,1750817441287,-500.0,0.00021973,2]
[367484313,1750817441296,-500.0,0.00021973,2]
[367484314,1750817441305,-500.0,0.00021973,2]
[367484315,1750817441314,-500.1998707,0.00021973,2]
[367484316,1750817441323,-500.0,0.00021973,2]
[367484317,1750817441332,-500.0,0.00021973,2]
[367484318,1750817441341,-500.0,0.00021973,2]
[367484319,1750817441350,-500.0,0.00021973,2]
[367484320,1750817441360,-500.0,0.00021973,2]
[367484321,1750817441369,-500.0,0.00021973,2]
[367484322,1750817441379,-500.0,0.00021973,2]
[367484323,1750817441389,-500.0,0.00021973,2]
[367484324,1750817441398,-500.74666282,0.00021973,2]
[367484325,1750817441408,-507.06280126,0.00021973,2]
[367484326,1750817441418,-500.0,0.00021973,2]
[367484327,1750817441554,-500.0,0.00021973,2]
[367484328,1750817441568,-500.0,0.00021973,2]
[367484329,1750817441578,-500.0,0.00021973,2]
[367484330,1750817441588,-500.0,0.00021973,2]
[367484331,1750817441599,-500.0,0.00021973,2]
[367484332,1750817441609,-500.0,0.00021973,2]
[367484333,1750817441619,-500.0,0.00021973,2]
[367484334,1750817441628,-500.0,0.00021973,2]
[367484335,1750817441637,-500.0,0.00021973,2]
[367484336,1750817441647,-500.0,0.00021973,2]
[367484337,1750817441656,-500.0,0.00021973,2]
[367484338,1750817441666,-100000.0,0.0002199,2]
[367484339,1750817441675,-68610.49858111,0.00022,2]
[367484340,1750817441685,-16987.13328732,0.00022,2]
[367484341,1750817441694,-182607.74214802,0.00022,2]
[367484342,1750817441709,-475.95853526,0.00022,2]
[367484405,1750817524607,1850.0,0.00025771,120]
[367484407,1750817736057,900.0,0.00023,30]
[367484409,1750818172163,243.051225,0.00013699,2]
[367484410,1750818298239,15900.54414455,0.00024657,120]
[367484412,1750818521898,165.3819824,0.00025773,120]
[367484413,1750818548940,1326.0,0.00025773,60]
[367484430,1750818632756,-4558.235,0.00016438,2]
[367484432,1750818632769,-159.57186215,0.00017705,2]
[367484434,1750818632778,-300.0,0.00017802,2]
[367484436,1750818632788,-300.0,0.00017803,2]
[367484437,1750818632798,-460.0,0.00017803,2]
[367484439,1750818632808,-494.49,0.00017803,2]
[367484441,1750818632817,-500.0,0.00017803,2]
[367484443,1750818632827,-500.0,0.00017803,2]
[367484445,1750818632837,-462.51408903,0.00017803,2]
[367484447,1750818632846,-460.0,0.00017804,2]
[367484449,1750818632856,-509.66995382,0.00017804,2]
[367484451,1750818632865,-460.0,0.00017804,2]
[367484452,1750818632875,-346.95022332,0.00017804,2]
[367484453,1750818632884,-552.71,0.00017804,2]
[367484454,1750818632894,-468.67487944,0.00017804,2]
[367484455,1750818632903,-460.0,0.00017804,2]
[367484456,1750818632913,-460.0,0.00017804,2]
[367484457,1750818632923,-468.0735199,0.00017804,2]
[367484458,1750818632932,-538.8121788,0.00017804,2]
[367484459,1750818632942,-553.61272818,0.00017804,2]
[367484460,1750818632951,-460.0,0.00017804,2]
[367484461,1750818632960,-460.0,0.00017804,2]
[367484462,1750818632969,-556.84,0.00017804,2]
[367484463,1750818632979,-460.0,0.00017804,2]
[367484464,1750818632989,-460.0,0.00017804,2]
[367484465,1750818632999,-460.0,0.00017804,2]
[367484466,1750818633008,-484.05,0.00017804,2]
[367484467,1750818633019,-460.0,0.00017804,2]
[367484468,1750818633028,-531.40710681,0.00017804,2]
[367484469,1750818633038,-12318.79769303,0.00017804,2]
[367484470,1750818633047,-309.51562226,0.00017805,2]
[367484471,1750818633057,-460.0,0.00017805,2]
[367484472,1750818633067,-469.88910191,0.00017805,2]
[367484473,1750818633077,-460.0,0.00017805,2]
[367484474,1750818633086,-377.76267543,0.00017805,2]
[367484475,1750818633099,-82.23732457,0.00017805,2]
[367484476,1750818633108,-413.55312561,0.00017805,2]
[367484477,1750818633117,-460.0,0.00017805,2]
[367484478,1750818633126,-460.0,0.00017805,2]
[367484479,1750818633135,-260.70985379,0.00017805,2]
[367484480,1750818633144,-195.00759872,0.00017805,2]
[367484481,1750818633154,-460.0,0.00017805,2]
[367484482,1750818633164,-447.87366096,0.00017805,2]
[367484483,1750818633173,-460.0,0.00017805,2]
[367484484,1750818633182,-460.0,0.00017805,2]
[367484485,1750818633191,-482.05492797,0.00017805,2]
[367484486,1750818633201,-460.0,0.00017805,2]
[367484487,1750818633211,-460.0,0.00017805,2]
[367484488,1750818633220,-486.40488264,0.00017805,2]
[367484489,1750818633229,-460.0,0.00017805,2]
[367484490,1750818633239,-370.35638105,0.00017805,2]
[367484491,1750818633248,-460.0,0.00017805,2]
[367484492,1750818633257,-460.0,0.00017805,2]
[367484493,1750818633268,-460.0,0.00017805,2]
[367484494,1750818633277,-460.92176475,0.00017805,2]
[367484495,1750818633286,-460.0,0.00017805,2]
[367484496,1750818633296,-460.0,0.00017805,2]
[367484497,1750818633305,-460.0,0.00017805,2]
[367484498,1750818633315,-460.0,0.00017805,2]
[367484499,1750818633324,-460.0,0.00017805,2]
[367484500,1750818633334,-460.0,0.00017805,2]
[367484501,1750818633343,-460.0,0.00017805,2]
[367484502,1750818633353,-460.0,0.00017805,2]
[367484503,1750818633363,-486.8362577,0.00017806,2]
[367484504,1750818633374,-471.29365535,0.00017806,2]
[367484505,1750818633383,-405.31923573,0.00017806,2]
[367484506,1750818633393,-460.0,0.00018077,2]
[367484507,1750818633403,-494.49,0.00018077,2]
[367484508,1750818633412,-460.0,0.00018078,2]
[367484509,1750818633422,-460.0,0.00018078,2]
[367484510,1750818633435,-460.0,0.00018078,2]
[367484511,1750818633445,-388.47,0.00018078,2]
[367484512,1750818633454,-460.0,0.00018078,2]
[367484513,1750818633464,-460.0,0.00018078,2]
[367484514,1750818633473,-556.84,0.00018078,2]
[367484515,1750818633482,-296.77779826,0.00018078,2]
[367484516,1750818633492,-460.0,0.00018078,2]
[367484517,1750818633502,-460.0,0.00018078,2]
[367484518,1750818633511,-484.05,0.00018078,2]
[367484519,1750818633521,-460.0,0.00018078,2]
[367484520,1750818633530,-388.34188669,0.00018079,2]
[367484521,1750818633539,-460.0,0.00018079,2]
[367484522,1750818633559,-176.45819377,0.00018079,2]
[367484523,1750818633568,-462.05712595,0.00018079,2]
[367484524,1750818633578,-460.0,0.00018079,2]
[367484525,1750818633588,-484.44427841,0.00018079,2]
[367484526,1750818633597,-460.0,0.00018079,2]
[367484527,1750818633606,-460.0,0.00018079,2]
[367484528,1750818633615,-255.5526168,0.00018079,2]
[367484529,1750818633625,-561.15,0.00018079,2]
[367484530,1750818633635,-479.33382884,0.00018079,2]
[367484531,1750818633644,-460.0,0.00018079,2]
[367484532,1750818633654,-460.0,0.00018079,2]
[367484533,1750818633664,-460.0,0.00018079,2]
[367484534,1750818633677,-460.0,0.00018079,2]
[367484535,1750818633687,-460.0,0.00018079,2]
[367484536,1750818633696,-460.0,0.00018079,2]
[367484537,1750818633706,-460.0,0.00018079,2]
[367484538,1750818633715,-460.0,0.00018079,2]
[367484539,1750818633725,-460.0,0.00018079,2]
[367484540,1750818633734,-460.0,0.00018079,2]
[367484541,1750818633744,-460.0,0.00018079,2]
[367484542,1750818633753,-460.0,0.00018079,2]
[367484543,1750818633764,-425.18553072,0.00018236,2]
[367484544,1750818633774,-160.0,0.00018236,2]
[367484545,1750818633784,-836.86812089,0.00018236,2]
[367484546,1750818633794,-846.80634355,0.00018236,2]
[367484547,1750818633803,-12558.06783089,0.00018236,2]
[367484548,1750818633812,-213.69531788,0.00018236,2]
[367484549,1750818633821,-230.22714675,0.00018236,2]
[367484550,1750818633831,-160.0,0.00018236,2]
[367484551,1750818633841,-460.0,0.00018351,2]
[367484552,1750818633850,-494.49,0.00018351,2]
[367484553,1750818633858,-460.0,0.00018352,2]
[367484554,1750818633867,-460.0,0.00018352,2]
[367484555,1750818633877,-486.41641269,0.00018352,2]
[367484556,1750818633886,-460.0,0.00018352,2]
[367484557,1750818633896,-341.52,0.00018352,2]
[367484558,1750818633907,-556.84,0.00018352,2]
[367484559,1750818633917,-460.0,0.00018352,2]
[367484560,1750818633927,-460.0,0.00018352,2]
[367484561,1750818633937,-484.05,0.00018352,2]
[367484562,1750818633947,-460.0,0.00018352,2]
[367484563,1750818633956,-174.6574551,0.00018353,2]
[367484564,1750818633966,-483.87868635,0.00018353,2]
[367484565,1750818633976,-460.0,0.00018353,2]
[367484566,1750818633986,-460.0,0.00018353,2]
[367484567,1750818633995,-460.0,0.00018353,2]
[367484568,1750818634005,-450.76081987,0.00018353,2]
[367484573,1750818638748,-9.23918013,0.00018353,2]
[367484574,1750818638758,-460.0,0.00018353,2]
[367484575,1750818638768,-460.0,0.00018353,2]
[367484576,1750818638777,-460.0,0.00018353,2]
[367484577,1750818638786,-184.41780896,0.00018353,2]
[367484578,1750818638796,-460.0,0.00018353,2]
[367484579,1750818638806,-460.0,0.00018353,2]
[367484580,1750818638815,-460.0,0.00018353,2]
[367484581,1750818638824,-460.0,0.00018353,2]
[367484582,1750818638834,-460.0,0.00018353,2]
[367484583,1750818638843,-460.0,0.00018625,2]
[367484584,1750818638852,-494.49,0.00018625,2]
[367484585,1750818638861,-460.0,0.00018626,2]
[367484586,1750818638870,-460.0,0.00018626,2]
[367484587,1750818638883,-460.0,0.00018626,2]
[367484588,1750818638893,-556.84,0.00018626,2]
[367484589,1750818638903,-460.0,0.00018626,2]
[367484590,1750818638912,-460.0,0.00018626,2]
[367484591,1750818638922,-484.05,0.00018626,2]
[367484592,1750818638931,-460.0,0.00018626,2]
[367484593,1750818638941,-460.0,0.00018627,2]
[367484594,1750818638950,-460.0,0.00018627,2]
[367484595,1750818638960,-460.0,0.00018627,2]
[367484596,1750818638969,-460.0,0.00018627,2]
[367484597,1750818638979,-460.0,0.00018627,2]
[367484598,1750818638989,-460.0,0.00018627,2]
[367484599,1750818638998,-554.879156,0.00018627,2]
[367484600,1750818639008,-460.0,0.00018627,2]
[367484601,1750818639018,-460.0,0.00018627,2]
[367484602,1750818639027,-460.0,0.00018627,2]
[367484603,1750818639037,-179.89206476,0.0001872,2]
[367484604,1750818639046,-504.49105772,0.00018787,2]
[367484605,1750818639056,-395.67986745,0.00018787,2]
[367484606,1750818639065,-159.57186209,0.00018846,2]
[367484607,1750818639075,-460.0,0.00018899,2]
[367484608,1750818639084,-494.49,0.00018899,2]
[367484609,1750818639094,-460.0,0.000189,2]
[367484610,1750818639103,-460.0,0.000189,2]
[367484611,1750818639113,-460.0,0.000189,2]
[367484612,1750818639122,-4271.09595691,0.000189,2]
[367484613,1750818639131,-556.84,0.000189,2]
[367484614,1750818639140,-460.0,0.000189,2]
[367484615,1750818639149,-460.0,0.000189,2]
[367484616,1750818639159,-484.05,0.000189,2]
[367484617,1750818639168,-460.0,0.000189,2]
[367484618,1750818639178,-460.0,0.00018901,2]
[367484619,1750818639187,-460.0,0.00018901,2]
[367484620,1750818639196,-460.0,0.00018901,2]
[367484621,1750818639205,-460.0,0.00018901,2]
[367484622,1750818639215,-460.0,0.00018901,2]
[367484623,1750818639224,-460.0,0.00018901,2]
[367484624,1750818639233,-460.0,0.00018901,2]
[367484625,1750818639242,-460.0,0.00018901,2]
[367484626,1750818639251,-460.0,0.00018901,2]
[367484627,1750818639260,-9080.72125001,0.00019,2]
[367484628,1750818639270,-535.09083016,0.0001911,2]
[367484629,1750818639280,-4271.09595683,0.00019141,2]
[367484630,1750818639289,-460.0,0.00019173,2]
[367484631,1750818639298,-494.49,0.00019173,2]
[367484632,1750818639308,-460.0,0.00019174,2]
[367484633,1750818639317,-460.0,0.00019174,2]
[367484634,1750818639326,-460.0,0.00019174,2]
[367484635,1750818639337,-556.84,0.00019174,2]
[367484636,1750818639347,-460.0,0.00019174,2]
[367484637,1750818639356,-460.0,0.00019174,2]
[367484638,1750818639365,-484.05,0.00019174,2]
[367484639,1750818639374,-460.0,0.00019174,2]
[367484640,1750818639383,-534.46,0.00019175,2]
[367484641,1750818639393,-460.0,0.00019175,2]
[367484642,1750818639402,-460.0,0.00019175,2]
[367484643,1750818639411,-460.0,0.00019175,2]
[367484644,1750818639420,-460.0,0.00019175,2]
[367484645,1750818639429,-460.0,0.00019175,2]
[367484646,1750818639439,-460.0,0.00019175,2]
[367484647,1750818639448,-460.0,0.00019175,2]
[367484648,1750818639457,-580.32951105,0.00019177,2]
[367484649,1750818639468,-500.0,0.00019178,2]
[367484650,1750818639479,-500.0,0.00019178,2]
[367484651,1750818639489,-500.0,0.00019178,2]
[367484652,1750818639499,-500.0,0.00019178,2]
[367484653,1750818639509,-500.0,0.00019178,2]
[367484654,1750818639520,-500.0,0.00019178,2]
[367484655,1750818639529,-500.0,0.00019178,2]
[367484656,1750818639539,-500.0,0.00019178,2]
[367484657,1750818639549,-417.44600508,0.00019178,2]
[367484658,1750818639558,-500.0,0.00019178,2]
[367484659,1750818639568,-273.152566,0.00019178,2]
[367484660,1750818639580,-802.4187796,0.00019178,2]
[367484661,1750818639590,-155.11276546,0.00019339,2]
[367484662,1750818639600,-4271.09595683,0.00019383,2]
[367484663,1750818639611,-420.0,0.00019428,2]
[367484664,1750818639620,-420.0,0.00019429,2]
[367484665,1750818639630,-24900.0,0.00019438,2]
[367484666,1750818639639,-460.0,0.00019447,2]
[367484667,1750818639650,-494.49,0.00019447,2]
[367484668,1750818639659,-460.0,0.00019448,2]
[367484669,1750818639668,-150.65751505,0.00019448,2]
[367484670,1750818639682,-460.0,0.00019448,2]
[367484671,1750818639691,-556.84,0.00019448,2]
[367484672,1750818639701,-460.0,0.00019448,2]
[367484673,1750818639710,-460.0,0.00019448,2]
[367484674,1750818639719,-484.05,0.00019448,2]
[367484675,1750818639728,-460.0,0.00019448,2]
[367484676,1750818639737,-460.0,0.00019449,2]
[367484677,1750818639746,-460.0,0.00019449,2]
[367484678,1750818639755,-460.0,0.00019449,2]
[367484679,1750818639766,-460.0,0.00019449,2]
[367484680,1750818639775,-460.0,0.00019449,2]
[367484681,1750818639784,-460.0,0.00019449,2]
[367484682,1750818639794,-460.0,0.00019449,2]
[367484683,1750818639803,-4271.09595683,0.00019624,2]
[367484684,1750818639813,-460.0,0.00019721,2]
[367484685,1750818639822,-494.49,0.00019721,2]
[367484686,1750818639832,-460.0,0.00019722,2]
[367484687,1750818639841,-460.0,0.00019722,2]
[367484688,1750818639850,-556.84,0.00019722,2]
[367484689,1750818639860,-460.0,0.00019722,2]
[367484690,1750818639869,-460.0,0.00019722,2]
[367484691,1750818639878,-484.05,0.00019722,2]
[367484692,1750818639888,-460.0,0.00019722,2]
[367484693,1750818639897,-460.0,0.00019723,2]
[367484694,1750818639908,-460.0,0.00019723,2]
[367484695,1750818639918,-460.0,0.00019723,2]
[367484696,1750818639928,-460.0,0.00019723,2]
[367484697,1750818639942,-460.0,0.00019723,2]
[367484698,1750818639954,-460.0,0.00019723,2]
[367484699,1750818639966,-460.0,0.00019723,2]
[367484700,1750818639979,-4271.09595683,0.00019866,2]
[367484701,1750818639991,-159.57186209,0.00019987,2]
[367484702,1750818640004,-221.33111767,0.00019995,2]
[367484703,1750818640014,-494.49,0.00019995,2]
[367484704,1750818640025,-432.81037558,0.00019996,2]
[367484705,1750818640035,-460.0,0.00019996,2]
[367484706,1750818640048,-556.84,0.00019996,2]
[367484707,1750818640059,-460.0,0.00019996,2]
[367484708,1750818640071,-460.0,0.00019996,2]
[367484709,1750818640083,-484.05,0.00019996,2]
[367484710,1750818640096,-460.0,0.00019997,2]
[367484711,1750818640108,-460.0,0.00019997,2]
[367484712,1750818640120,-460.0,0.00019997,2]
[367484713,1750818640132,-460.0,0.00019997,2]
[367484714,1750818640142,-460.0,0.00019997,2]
[367484715,1750818640154,-460.0,0.00019997,2]
[367484716,1750818640165,-430.99871146,0.0002,2]
[367484717,1750818640177,-300.0,0.0002,2]
[367484718,1750818640189,-150.072842,0.0002,7]
[367484719,1750818640200,-207.4,0.00020087,2]
[367484720,1750818640212,-5000.0,0.00020087,2]
[367484721,1750818640234,-656.41385292,0.00020087,2]
[367484722,1750818640248,-177.85,0.000201,2]
[367484723,1750818640267,-4271.09595683,0.00020107,2]
[367484725,1750818640281,-1361.091,0.00020164,2]
[367484727,1750818640295,-500.0,0.00020164,2]
[367484729,1750818640308,-243.051225,0.00020187,2]
[367484730,1750818640323,-1007.0,0.000202,2]
[367484731,1750818640336,-494.49,0.00020269,2]
[367484732,1750818640349,-460.0,0.0002027,2]
[367484733,1750818640360,-556.84,0.0002027,2]
[367484735,1750818640373,-460.0,0.0002027,2]
[367484736,1750818640384,-460.0,0.0002027,2]
[367484738,1750818640394,-484.05,0.0002027,2]
[367484740,1750818640404,-460.0,0.00020271,2]
[367484742,1750818640415,-460.0,0.00020271,2]
[367484745,1750818640427,-460.0,0.00020271,2]
[367484747,1750818640438,-473.55826374,0.00020271,2]
[367484749,1750818640451,-460.0,0.00020271,2]
[367484751,1750818640463,-460.0,0.00020271,2]
[367484754,1750818640476,-1007.0,0.00020306,2]
[367484756,1750818640489,-4271.09595683,0.00020348,3]
[367484759,1750818640502,-406.0,0.00020364,2]
[367484761,1750818640516,-967.027,0.00020364,2]
[367484763,1750818640527,-1007.0,0.00020467,2]
[367484766,1750818640540,-1007.0,0.00020525,2]
[367484769,1750818640552,-494.49,0.00020543,2]
[367484771,1750818640564,-460.0,0.00020544,2]
[367484774,1750818640578,-556.84,0.00020544,2]
[367484776,1750818640591,-460.0,0.00020544,2]
[367484778,1750818640603,-460.0,0.00020544,2]
[367484780,1750818640614,-484.05,0.00020544,2]
[367484783,1750818640626,-360.05354762,0.00020545,2]
[367484785,1750818640638,-460.0,0.00020545,2]
[367484787,1750818640648,-460.0,0.00020545,2]
[367484789,1750818640658,-460.0,0.00020545,2]
[367484791,1750818640668,-460.0,0.00020545,2]
[367484793,1750818640684,-1007.0,0.00020546,2]
[367484796,1750818640696,-500.0,0.00020547,14]
[367484798,1750818640707,-4271.09595683,0.0002059,3]
[367484800,1750818640723,-6338.89,0.000206,2]
[367484803,1750818640735,-1007.0,0.00020615,2]
[367484805,1750818640748,-1007.0,0.00020648,2]
[367484807,1750818640759,-1007.0,0.00020689,2]
[367484809,1750818640770,-1118.0,0.00020811,2]
[367484811,1750818640781,-494.49,0.00020817,2]
[367484813,1750818640791,-460.0,0.00020818,2]
[367484815,1750818640802,-556.84,0.00020818,2]